{"text_format":"3","workbook":"xlsx","n_sheets":1,"sheets":["Hitelkalkulátor"],"not_rendered":{"defined_names":9},"read":"whole","date_system":"1900"}

{"sheet":"Hitelkalkulátor","index":0,"n_rows":22,"n_cols":13,"rows_kept":22,"merged":[[1,1,1,3],[1,6,2,8],[1,11,2,12],[2,1,2,3],[6,5,6,6],[7,5,7,6],[10,2,10,5],[10,6,10,8],[10,9,10,12],[18,2,18,12]]}
[]
[null,"DIÁKHITEL-",{"$nulls":4},{"v":5000000,"d":"5,000,000 Ft"},{"$nulls":4},"2011-05-10"]
[null,"KALKULÁTOR"]
[]
[null,"A diákhitelek törlesztőrészleteinek havi összege a diploma megszerzése utáni első évben lehetőleg ne haladja meg az egész évi fizetés 8%-át."]
[]
[null,null,"A havonta fizetett törlesztőrészlet jelenleg összesen:",null,null,{"$f":"DiákHitelek[[#Totals],[Jelenlegi havi törlesztés]]","v":{"v":32858.59072605883,"d":"32,858.59 Ft"}},null,null,"A havonta tervezett törlesztőrészlet összesen:",{"$nulls":3},{"$f":"DiákHitelek[[#Totals],[Tervezett törlesztés]]","v":{"v":32858.59072605883,"d":"32,858.59 Ft"}}]
[null,null,"A havi jövedelem arányában:",null,null,{"$f":"DiákHitelek[[#Totals],[Jelenlegi havi törlesztés]]/BecsültHaviFizetés","v":{"v":0.07886061774254119,"d":"7.89%"}},null,null,"  A havi jövedelem arányában:",{"$nulls":3},{"$f":"DiákHitelek[[#Totals],[Tervezett törlesztés]]/BecsültHaviFizetés","v":{"v":0.07886061774254119,"d":"7.89%"}}]
[]
[]
[null,null,"ÁLTALÁNOS HITELADATOK",{"$nulls":3},"HITELTÖRLESZTÉSI ADATOK",null,null,"FIZETÉSI ADATOK"]
[null,null,"Hitel száma","Hitelező","Hitel összege","Éves kamatláb","Kezdő dátum","Időtartam (év)","Záró dátum","Jelenlegi havi törlesztés","Kamat összesen","Tervezett törlesztés","Éves törlesztés"]
[null,null,"10998M88","1. hitelező",{"v":1000000,"d":"1,000,000.00 Ft"},{"v":0.05,"d":"5.00%"},"2011-04-01",10,{"$f":"IF(AND(DiákHitelek[[#This Row],[Kezdő dátum]]>0,DiákHitelek[[#This Row],[Időtartam (év)]]>0),EDATE(DiákHitelek[[#This Row],[Kezdő dátum]],DiákHitelek[[#This Row],[Időtartam (év)]]*12),\"\")","v":"2021-04-01"},{"$f":"IF(AND(HitelKezdőHNap,COUNT(DiákHitelek[[#This Row],[Hitel összege]]:DiákHitelek[[#This Row],[Időtartam (év)]])=4,DiákHitelek[[#This Row],[Kezdő dátum]]<TODAY()),PMT(DiákHitelek[[#This Row],[Éves kamatláb]]/12,DiákHitelek[[#This Row],[Időtartam (év)]]*12,-DiákHitelek[[#This Row],[Hitel összege]],0,0),\"\")","v":{"v":10606.551523907523,"d":"10,606.55 Ft"}},{"$f":"IFERROR((DiákHitelek[[#This Row],[Tervezett törlesztés]]*(DiákHitelek[[#This Row],[Időtartam (év)]]*12))-DiákHitelek[[#This Row],[Hitel összege]],\"\")","v":{"v":272786.1828689028,"d":"272,786.18 Ft"}},{"$f":"IF(COUNTA(DiákHitelek[[#This Row],[Hitel összege]:[Időtartam (év)]])<>4,\"\",PMT(DiákHitelek[[#This Row],[Éves kamatláb]]/12,DiákHitelek[[#This Row],[Időtartam (év)]]*12,-DiákHitelek[[#This Row],[Hitel összege]],0,0))","v":{"v":10606.551523907523,"d":"10,606.55 Ft"}},{"$f":"IFERROR(DiákHitelek[[#This Row],[Tervezett törlesztés]]*12,\"\")","v":{"v":127278.61828689027,"d":"127,278.62 Ft"}}]
[null,null,"20987N87","2. hitelező",{"v":800000,"d":"800,000.00 Ft"},{"v":0.05,"d":"5.00%"},"2011-05-01",10,{"$f":"IF(AND(DiákHitelek[[#This Row],[Kezdő dátum]]>0,DiákHitelek[[#This Row],[Időtartam (év)]]>0),EDATE(DiákHitelek[[#This Row],[Kezdő dátum]],DiákHitelek[[#This Row],[Időtartam (év)]]*12),\"\")","v":"2021-05-01"},{"$f":"IF(AND(HitelKezdőHNap,COUNT(DiákHitelek[[#This Row],[Hitel összege]]:DiákHitelek[[#This Row],[Időtartam (év)]])=4,DiákHitelek[[#This Row],[Kezdő dátum]]<TODAY()),PMT(DiákHitelek[[#This Row],[Éves kamatláb]]/12,DiákHitelek[[#This Row],[Időtartam (év)]]*12,-DiákHitelek[[#This Row],[Hitel összege]],0,0),\"\")","v":{"v":8485.24121912602,"d":"8,485.24 Ft"}},{"$f":"IFERROR((DiákHitelek[[#This Row],[Tervezett törlesztés]]*(DiákHitelek[[#This Row],[Időtartam (év)]]*12))-DiákHitelek[[#This Row],[Hitel összege]],\"\")","v":{"v":218228.94629512227,"d":"218,228.95 Ft"}},{"$f":"IF(COUNTA(DiákHitelek[[#This Row],[Hitel összege]:[Időtartam (év)]])<>4,\"\",PMT(DiákHitelek[[#This Row],[Éves kamatláb]]/12,DiákHitelek[[#This Row],[Időtartam (év)]]*12,-DiákHitelek[[#This Row],[Hitel összege]],0,0))","v":{"v":8485.24121912602,"d":"8,485.24 Ft"}},{"$f":"IFERROR(DiákHitelek[[#This Row],[Tervezett törlesztés]]*12,\"\")","v":{"v":101822.89462951223,"d":"101,822.89 Ft"}}]
[null,null,"36785LM","3. hitelező",{"v":600000,"d":"600,000.00 Ft"},{"v":0.045,"d":"4.50%"},"2012-03-01",10,{"$f":"IF(AND(DiákHitelek[[#This Row],[Kezdő dátum]]>0,DiákHitelek[[#This Row],[Időtartam (év)]]>0),EDATE(DiákHitelek[[#This Row],[Kezdő dátum]],DiákHitelek[[#This Row],[Időtartam (év)]]*12),\"\")","v":"2022-03-01"},{"$f":"IF(AND(HitelKezdőHNap,COUNT(DiákHitelek[[#This Row],[Hitel összege]]:DiákHitelek[[#This Row],[Időtartam (év)]])=4,DiákHitelek[[#This Row],[Kezdő dátum]]<TODAY()),PMT(DiákHitelek[[#This Row],[Éves kamatláb]]/12,DiákHitelek[[#This Row],[Időtartam (év)]]*12,-DiákHitelek[[#This Row],[Hitel összege]],0,0),\"\")","v":{"v":6218.304525420918,"d":"6,218.30 Ft"}},{"$f":"IFERROR((DiákHitelek[[#This Row],[Tervezett törlesztés]]*(DiákHitelek[[#This Row],[Időtartam (év)]]*12))-DiákHitelek[[#This Row],[Hitel összege]],\"\")","v":{"v":146196.54305051023,"d":"146,196.54 Ft"}},{"$f":"IF(COUNTA(DiákHitelek[[#This Row],[Hitel összege]:[Időtartam (év)]])<>4,\"\",PMT(DiákHitelek[[#This Row],[Éves kamatláb]]/12,DiákHitelek[[#This Row],[Időtartam (év)]]*12,-DiákHitelek[[#This Row],[Hitel összege]],0,0))","v":{"v":6218.304525420918,"d":"6,218.30 Ft"}},{"$f":"IFERROR(DiákHitelek[[#This Row],[Tervezett törlesztés]]*12,\"\")","v":{"v":74619.65430505102,"d":"74,619.65 Ft"}}]
[null,null,"765R43","4. hitelező",{"v":400000,"d":"400,000.00 Ft"},{"v":0.05,"d":"5.00%"},"2012-05-01",5,{"$f":"IF(AND(DiákHitelek[[#This Row],[Kezdő dátum]]>0,DiákHitelek[[#This Row],[Időtartam (év)]]>0),EDATE(DiákHitelek[[#This Row],[Kezdő dátum]],DiákHitelek[[#This Row],[Időtartam (év)]]*12),\"\")","v":"2017-05-01"},{"$f":"IF(AND(HitelKezdőHNap,COUNT(DiákHitelek[[#This Row],[Hitel összege]]:DiákHitelek[[#This Row],[Időtartam (év)]])=4,DiákHitelek[[#This Row],[Kezdő dátum]]<TODAY()),PMT(DiákHitelek[[#This Row],[Éves kamatláb]]/12,DiákHitelek[[#This Row],[Időtartam (év)]]*12,-DiákHitelek[[#This Row],[Hitel összege]],0,0),\"\")","v":{"v":7548.493457604374,"d":"7,548.49 Ft"}},{"$f":"IFERROR((DiákHitelek[[#This Row],[Tervezett törlesztés]]*(DiákHitelek[[#This Row],[Időtartam (év)]]*12))-DiákHitelek[[#This Row],[Hitel összege]],\"\")","v":{"v":52909.607456262456,"d":"52,909.61 Ft"}},{"$f":"IF(COUNTA(DiákHitelek[[#This Row],[Hitel összege]:[Időtartam (év)]])<>4,\"\",PMT(DiákHitelek[[#This Row],[Éves kamatláb]]/12,DiákHitelek[[#This Row],[Időtartam (év)]]*12,-DiákHitelek[[#This Row],[Hitel összege]],0,0))","v":{"v":7548.493457604374,"d":"7,548.49 Ft"}},{"$f":"IFERROR(DiákHitelek[[#This Row],[Tervezett törlesztés]]*12,\"\")","v":{"v":90581.92149125249,"d":"90,581.92 Ft"}}]
[null,null,"Összegek",null,{"$f":"SUBTOTAL(109,DiákHitelek[Hitel összege])","v":{"v":2800000,"d":"2,800,000.00 Ft"}},{"$nulls":4},{"$f":"SUBTOTAL(109,DiákHitelek[Jelenlegi havi törlesztés])","v":{"v":32858.59072605883,"d":"32,858.59 Ft"}},{"$f":"SUBTOTAL(109,DiákHitelek[Kamat összesen])","v":{"v":690121.2796707978,"d":"690,121.28 Ft"}},{"$f":"SUBTOTAL(109,DiákHitelek[Tervezett törlesztés])","v":{"v":32858.59072605883,"d":"32,858.59 Ft"}},{"$f":"SUBTOTAL(109,DiákHitelek[Éves törlesztés])","v":{"v":394303.088712706,"d":"394,303.09 Ft"}}]
[null,null,"Átlagok",null,{"$f":"AVERAGE(DiákHitelek[Hitel összege])","v":{"v":700000,"d":"700,000.00 Ft"}},{"$f":"AVERAGE(DiákHitelek[Éves kamatláb])","v":{"v":0.04875,"d":"4.88%"}},{"$nulls":4},{"$f":"AVERAGE(DiákHitelek[Kamat összesen])","v":{"v":172530.31991769944,"d":"172,530.32 Ft"}},null,{"$f":"AVERAGE(DiákHitelek[Éves törlesztés])","v":{"v":98575.7721781765,"d":"98,575.77 Ft"}}]
[]
[{"$nulls":10},"Teljes konszolidált hiteltörlesztés:",null,{"$f":"DiákHitelek[[#Totals],[Hitel összege]]+DiákHitelek[[#Totals],[Kamat összesen]]","v":{"v":3490121.2796707978,"d":"3,490,121.28 Ft"}}]
[]
[{"$nulls":10},"Becsült havi jövedelem a diploma után:",null,{"$f":"(BecsültÉvesFizetés/12)","v":{"v":416666.6666666667,"d":"416,666.67 Ft"}}]